bitfinex/quotes_ETHUSD_20251130
["timestamp","ask_amount","ask_price","bid_price","bid_amount"]
[1764543569283,0.4583,3036.3,3036.2,4.06067123]
[1764543572013,0.4866,3036.6,3036.2,4.06067123]
[1764543573994,0.4583,3036.3,3035.7,0.72559411]
[1764543574187,0.2373,3036.2,3035.8,0.613504]
[1764543574683,0.4561,3035.9,3035.8,0.613504]
[1764543575097,0.6501,3035.9,3035.8,0.405504]
[1764543575387,1.1367,3035.9,3035.8,0.208]
[1764543580320,1.1367,3035.9,3035.5,0.406504]
[1764543580493,0.4583,3035.6,3035.5,0.406504]
[1764543580817,0.4583,3035.6,3035.5,0.001]
[1764543581004,1.382444,3035.6,3035.5,0.001]
[1764543581204,0.9449,3035.6,3035.5,0.001]
[1764543582421,4.23914166,3035.6,3035.5,0.001]
[1764543583720,0.4583,3035.6,3035.5,0.001]
[1764543584231,0.194,3035.9,3035.6,0.405504]
[1764543584444,0.4866,3036.1,3035.7,0.613504]
[1764543584895,0.4583,3035.8,3035.7,0.613504]
[1764543585907,0.4583,3035.8,3035.5,0.72659411]
[1764543585908,0.9449,3035.8,3035.5,0.001]
[1764543586108,0.4561,3035.6,3035.5,0.001]
[1764543586648,0.9427,3035.6,3035.5,0.001]
[1764543587549,4.23694166,3035.6,3035.5,0.001]
[1764543587709,4.99004214,3035.6,3035.5,0.001]
[1764543589250,0.9427,3035.6,3035.5,0.001]
[1764543589808,3.29406954,3035.8,3035.5,0.001]
[1764543590040,3.78066954,3035.8,3035.7,0.405504]
[1764543590229,3.29406954,3035.8,3035.7,0.405504]
[1764543590439,3.29406954,3035.8,3035.6,0.405504]
[1764543590440,7.04643908,3035.8,3035.6,0.405504]
[1764543590612,0.72404391,3035.7,3035.6,0.405504]
[1764543590807,4.96307705,3035.7,3035.6,0.405504]
[1764543594313,1.66894391,3035.7,3035.6,0.405504]
[1764543595153,1.67094391,3035.7,3035.6,0.405504]
[1764543596312,4.96507705,3035.7,3035.6,0.405504]
[1764543597113,0.4603,3035.7,3035.6,0.405504]
[1764543597514,0.9117,3035.7,3035.6,0.405504]
[1764543599849,0.4603,3035.7,3035.6,0.405504]
[1764543600015,0.9117,3035.7,3035.6,0.405504]
[1764543600355,0.002,3035.7,3035.6,8.14458577]
[1764543600514,0.002,3035.7,3035.6,1.065504]
[1764543600844,0.208,3036.9,3035.9,6.157009]
[1764543600845,0.4514,3036.9,3035.9,6.157009]
[1764543601048,0.4514,3036.7,3036.0,0.613504]
[1764543601216,0.4514,3036.7,3036.0,0.405504]
[1764543601418,0.4514,3036.7,3036.0,3.69930057]
[1764543601729,0.4546,3036.1,3036.0,0.405504]
[1764543602752,0.4546,3036.1,3036.0,0.208]
[1764543603518,3.93992903,3037.4,3036.3,0.405504]
[1764543603720,3.93992903,3037.4,3036.2,3.491732]
[1764543603721,3.93995141,3037.4,3036.7,0.405504]
[1764543603921,3.93995141,3037.4,3036.2,0.452]
[1764543603922,0.84539514,3037.3,3036.9,0.405504]
[1764543604123,0.39399514,3037.3,3037.1,0.405504]
[1764543604397,0.1962,3037.4,3037.3,0.405504]
[1764543604653,0.1962,3037.4,3037.3,0.614504]
[1764543604852,1.1022,3037.4,3037.3,0.614504]
[1764543605037,3.74323966,3037.9,3037.3,1.066504]
[1764543605230,0.4514,3037.9,3037.3,1.066504]
[1764543605553,0.4514,3037.9,3036.7,3.29304837]
[1764543605554,0.4546,3037.4,3036.7,3.29304837]
[1764543605740,0.4546,3037.4,3036.2,3.29352349]
[1764543605741,0.2509,3037.3,3036.8,0.405504]
[1764543605927,0.2509,3037.3,3037.0,0.405504]
[1764543606126,0.4514,3037.7,3037.3,0.405504]
[1764543606443,0.41377425,3037.6,3037.5,0.405504]
[1764543606928,1.31977425,3037.6,3037.5,0.405504]
[1764543608831,4.61184693,3037.6,3037.5,0.405504]
[1764543610267,4.61184693,3037.6,3037.4,0.405504]
[1764543610464,0.7023,3037.5,3037.4,0.405504]
[1764543610670,1.47231289,3037.5,3037.2,0.209]
[1764543610833,0.6508,3036.6,3035.5,0.72659411]
[1764543611033,0.6508,3036.6,3035.5,0.001]
[1764543611034,0.6488,3035.6,3035.5,0.001]
[1764543611535,1.1002,3035.6,3035.5,0.001]
[1764543612064,4.39444166,3035.6,3035.5,0.001]
[1764543612231,5.16329835,3035.6,3035.5,0.001]
[1764543617034,5.49202851,3035.6,3035.5,0.001]
[1764543617759,6.21762262,3035.6,3035.5,0.001]
[1764543618140,5.88889246,3035.6,3035.5,0.001]
[1764543618338,6.21762262,3035.6,3035.5,0.001]
[1764543618771,5.88889246,3035.6,3035.5,0.001]
[1764543619478,6.21762262,3035.6,3035.5,0.001]
[1764543620346,6.42662262,3035.6,3035.5,0.001]
[1764543620875,5.16329835,3035.6,3035.5,0.001]
[1764543621179,4.71189835,3035.6,3035.5,0.001]
[1764543621338,5.16329835,3035.6,3035.5,0.001]
[1764543624878,4.39444166,3035.6,3035.5,0.001]
[1764543625183,3.29391613,3035.9,3035.6,0.405504]
[1764543625379,3.96511613,3035.9,3035.6,0.405504]
[1764543625784,0.4539,3035.7,3035.5,0.001]
[1764543626576,3.74814166,3035.6,3035.5,0.001]
[1764543626778,4.22284166,3035.6,3035.5,0.001]
[1764543627467,4.55157182,3035.6,3035.5,0.001]
[1764543627655,4.22284166,3035.6,3035.5,0.001]
[1764543628881,4.55157182,3035.6,3035.5,0.001]
[1764543629053,5.87455475,3035.6,3035.5,0.001]
[1764543629593,5.54582459,3035.6,3035.5,0.001]
[1764543630196,0.4539,3035.6,3035.5,0.001]
[1764543630357,0.1965,3035.9,3035.6,0.405504]
[1764543630358,3.29402463,3035.8,3035.6,0.405504]
[1764543630555,0.4539,3035.7,3035.5,0.001]
[1764543630763,3.96512621,3035.9,3035.5,0.001]
[1764543630764,0.2282,3035.6,3035.5,0.001]
[1764543631270,0.7234,3035.6,3035.5,0.001]
[1764543631919,1.48741794,3035.6,3035.5,0.001]
[1764543632065,1.8161481,3035.6,3035.5,0.001]
[1764543632792,5.11038976,3035.6,3035.5,0.001]
[1764543635574,6.04498387,3035.6,3035.5,0.001]
[1764543640314,0.32873016,3035.3,3035.2,0.001]
[1764543640523,0.76013016,3035.3,3035.2,0.001]
[1764543640689,1.25533016,3035.3,3035.2,0.001]
[1764543641013,0.9266,3035.3,3035.2,0.001]
[1764543641218,0.60449839,3035.5,3035.2,0.4956]
[1764543641421,0.32873016,3035.6,3035.2,0.4956]
[1764543641960,0.209,3035.8,3035.3,0.405504]
[1764543642126,0.32873016,3035.8,3035.3,0.405504]
[1764543642414,3.29393283,3035.9,3035.4,0.405504]
[1764543642590,3.29393283,3035.9,3035.3,0.4784]
[1764543642591,6.58786566,3035.9,3035.3,0.405504]
[1764543642791,7.45185223,3035.9,3035.3,0.405504]
[1764543643713,7.45185223,3035.9,3035.2,0.406504]
[1764543644021,3.29424166,3035.6,3035.2,0.406504]
[1764543644203,3.29413366,3035.7,3035.2,0.406504]
[1764543644408,3.29413366,3035.7,3035.4,0.405504]
[1764543644804,6.58826732,3035.7,3035.4,0.405504]
[1764543645010,6.58826732,3035.7,3035.2,0.1505]
[1764543645390,6.58826732,3035.7,3035.3,0.405504]
[1764543645590,0.4952,3035.6,3035.3,0.405504]
[1764543645815,0.4683,3035.4,3035.3,0.405504]
[1764543646204,3.76275872,3035.4,3035.3,0.405504]
[1764543648925,3.76275872,3035.4,3035.2,0.001]
[1764543649229,3.62297413,3035.6,3035.4,0.405504]
[1764543652293,3.29424397,3035.6,3035.4,0.405504]
[1764543652494,3.29424397,3035.6,3035.5,0.900104]
[1764543652895,3.29424397,3035.6,3035.5,1.382704]
[1764543653117,0.002,3035.7,3035.6,0.405504]
[1764543653327,0.002,3035.7,3035.6,0.905004]
[1764543657708,0.002,3035.7,3035.6,1.387604]
[1764543657897,0.002,3035.7,3035.6,0.905004]
[1764543660717,0.002,3035.7,3035.6,1.387604]
[1764543662320,0.002,3035.7,3035.6,0.905004]
[1764543662752,6.58810395,3036.1,3035.6,1.387604]
[1764543663622,0.00070565,3036.1,3035.6,1.387604]
[1764543663938,0.00070565,3036.1,3036.0,0.4995]
[1764543664646,0.00070565,3036.1,3035.8,0.405504]
[1764543665021,0.00070565,3036.1,3035.6,0.405504]
[1764543665220,0.32873016,3036.0,3035.6,0.405504]
[1764543665734,6.58783226,3035.9,3035.6,0.405504]
[1764543666651,3.29391613,3035.9,3035.6,0.405504]
[1764543667162,3.29382575,3036.0,3035.9,0.405504]
[1764543667448,3.29382575,3036.0,3035.9,0.905004]
[1764543667644,0.00070565,3036.1,3035.8,0.405504]
[1764543668246,0.00070565,3036.1,3035.6,0.405504]
[1764543668623,0.47680565,3036.1,3035.6,0.405504]
[1764543668948,0.00070565,3036.1,3036.0,0.905004]
[1764543670431,0.00070565,3036.1,3036.0,0.405504]
[1764543670837,0.00070565,3036.1,3036.0,0.905004]
[1764543671937,1.26733581,3036.1,3036.0,0.405504]
[1764543673357,1.26733581,3036.1,3035.5,0.209]
[1764543673358,0.93860565,3036.1,3035.6,0.405504]
[1764543673540,0.80483016,3036.0,3035.6,0.405504]
[1764543674060,0.4618,3035.7,3035.4,0.001]
[1764543674356,0.32873016,3035.8,3035.4,0.001]
[1764543674357,0.78823016,3035.5,3035.4,0.001]
[1764543674857,1.26433016,3035.5,3035.4,0.001]
[1764543675360,10.27424839,3035.9,3035.4,0.001]
[1764543675361,7.30906242,3035.9,3035.4,0.4715]
[1764543675653,1.51212484,3035.8,3035.4,0.4715]
[1764543675858,3.29413314,3035.7,3035.4,0.4715]
[1764543676156,4.80616991,3035.8,3035.7,0.876004]
[1764543676157,3.29404507,3035.8,3035.7,0.876004]
[1764543677936,3.29404507,3035.8,3035.7,0.405504]
[1764543678143,3.29391168,3036.0,3035.8,0.405504]
[1764543678331,3.29391168,3036.0,3035.9,0.876004]
[1764543678531,3.29391168,3036.0,3035.9,0.405504]
[1764543678728,3.29391168,3036.0,3035.9,0.876004]
[1764543679565,3.79061168,3036.0,3035.9,0.405504]
[1764543680134,4.98382391,3036.0,3035.9,0.405504]
[1764543681656,5.31255407,3036.0,3035.9,0.405504]
[1764543683336,4.98382391,3036.0,3035.9,0.405504]
[1764543683964,3.29391168,3036.0,3035.9,0.869104]
[1764543684339,0.00070565,3036.1,3035.9,0.869104]
[1764543684773,0.00070565,3036.1,3035.9,0.405504]
[1764543684774,0.464,3036.0,3035.9,0.405504]
[1764543686999,3.75780764,3036.0,3035.9,0.405504]
[1764543688253,3.75780764,3036.0,3035.9,0.406504]
[1764543689386,4.0865378,3036.0,3035.9,0.406504]
[1764543690387,3.75780764,3036.0,3035.9,0.406504]
[1764543693145,3.29380764,3036.0,3035.9,0.902504]
[1764543693477,3.29440518,3036.1,3035.9,0.902504]
[1764543693478,0.00070565,3036.1,3036.0,0.405504]
[1764543693682,0.00070565,3036.1,3036.0,1.382904]
[1764543696666,0.00070565,3036.1,3036.0,1.88513289]
[1764543700999,0.00070565,3036.1,3036.0,1.40373289]
[1764543701594,0.00070565,3036.1,3036.0,1.88513289]
[1764543704588,0.00070565,3036.1,3036.0,5.17894053]
[1764543704785,0.00070565,3036.1,3036.0,1.88513289]
[1764543705503,0.00070565,3036.1,3036.0,5.17894053]
[1764543706072,0.46210565,3036.1,3036.0,0.50322889]
[1764543706308,0.92280565,3036.1,3036.0,0.001]
[1764543706508,1.25153581,3036.1,3036.0,0.001]
[1764543706810,1.97712992,3036.1,3036.0,0.001]
[1764543706984,2.53870611,3036.1,3036.0,0.001]
[1764543707303,5.83240526,3036.1,3036.0,0.001]
[1764543730311,5.5087751,3036.1,3036.0,0.001]
[1764543730508,5.37170526,3036.1,3036.0,0.001]
[1764543731038,5.83750526,3036.1,3036.0,0.001]
[1764543732147,5.37170526,3036.1,3036.0,0.001]
[1764543733315,3.85598099,3036.1,3036.0,0.4942]
[1764543733508,3.2944048,3036.1,3036.0,0.001]
[1764543734136,0.00070565,3036.1,3036.0,0.001]
[1764543736635,3.7835048,3036.1,3036.0,0.001]
[1764543736837,4.11223496,3036.1,3036.0,0.001]
[1764543737633,3.62313496,3036.1,3036.0,0.4942]
[1764543738237,3.62313496,3036.1,3036.0,0.001]
[1764543738642,4.11223496,3036.1,3036.0,0.001]
[1764543740258,5.43775698,3036.1,3036.0,0.001]
[1764543742239,4.57803496,3036.1,3036.0,0.001]
[1764543750768,4.11223496,3036.1,3036.0,0.001]
[1764543750965,3.7835048,3036.1,3036.0,0.001]
[1764543751346,3.2944048,3036.1,3036.0,0.001]
[1764543752867,0.49300565,3036.1,3036.0,0.001]
[1764543753072,1.30273581,3036.1,3036.0,0.001]
[1764543753848,5.59491901,3036.1,3036.0,0.001]
[1764543754884,8.88861816,3036.1,3036.0,0.001]
[1764543756199,9.09661816,3036.1,3036.0,0.001]
[1764543756370,5.66598617,3036.1,3036.0,0.001]
[1764543757296,4.69268617,3036.1,3036.0,0.001]
[1764543757500,3.5024048,3036.1,3036.0,0.001]
[1764543757700,3.83113496,3036.1,3036.0,0.001]
[1764543758413,4.32343496,3036.1,3036.0,0.001]
[1764543758606,4.80443496,3036.1,3036.0,0.001]
[1764543763021,0.00070565,3036.1,3036.0,1.352904]
[1764543764240,0.82173581,3036.1,3036.0,0.001]
[1764543764406,1.51073581,3036.1,3036.0,0.001]
[1764543764605,1.51073581,3036.1,3035.9,0.001]
[1764543764606,6.69701247,3036.1,3035.9,0.001]
[1764543764904,5.09301292,3036.0,3035.9,0.001]
[1764543765223,5.70135303,3036.0,3035.9,0.001]
[1764543766429,8.99588999,3036.0,3035.9,0.001]
[1764543767732,12.16370796,3036.0,3035.9,0.001]
[1764543770049,8.99588999,3036.0,3035.9,0.001]
[1764543771074,8.30688999,3036.0,3035.9,0.001]
[1764543771220,8.51488999,3036.0,3035.9,0.001]
[1764543773416,8.12428999,3036.0,3035.9,0.4719]
[1764543773615,8.12428999,3036.0,3035.9,0.9371]
[1764543773616,4.01940175,3036.0,3035.9,0.9371]
[1764543773812,4.01940175,3036.0,3035.9,0.4719]
[1764543774039,4.34813191,3036.0,3035.9,0.4719]
[1764543774758,9.6574974,3036.0,3035.9,0.001]
[1764543774958,19.41293065,3036.0,3035.6,0.001]
[1764543775114,7.82906021,3035.7,3035.6,0.001]
[1764543775315,0.96639411,3035.3,3035.1,0.001]
[1764543775560,0.96639411,3035.3,3033.5,0.4652]
[1764543775561,0.32873016,3034.8,3033.5,0.4652]
[1764543775741,0.32873016,3034.8,3032.9,0.1719]
[1764543775742,0.32873016,3033.5,3032.9,0.1719]
[1764543775920,0.72559411,3034.7,3032.9,0.1719]
[1764543775921,0.208,3033.7,3033.2,0.4652]
[1764543776115,3.95564813,3033.5,3032.7,0.001]
[1764543776346,0.41636481,3033.5,3033.1,0.6391]
[1764543776521,0.78783016,3033.5,3033.1,0.1739]
[1764543776723,0.78783016,3033.5,3032.7,0.001]
[1764543776724,1.24423016,3033.5,3032.7,0.001]
[1764543777527,5.26634643,3033.5,3032.7,0.001]
[1764543780776,4.45239065,3033.1,3032.7,0.001]
[1764543780959,5.33542972,3033.1,3032.7,0.001]
[1764543781143,0.77396923,3033.1,3032.7,0.001]
[1764543781329,0.99683016,3033.1,3032.7,0.001]
[1764543781533,1.45323016,3033.1,3032.7,0.001]
[1764543781730,0.72559411,3033.4,3033.0,0.9371]
[1764543781731,0.93459411,3033.4,3033.0,0.9371]
[1764543782064,4.55995511,3033.4,3033.3,0.4709]
[1764543782289,7.85658595,3033.4,3033.1,0.1527]
[1764543782445,0.32873016,3033.1,3033.0,0.001]
[1764543782844,0.78783016,3033.1,3033.0,0.001]
[1764543783042,1.96982427,3033.1,3033.0,0.001]
[1764543783981,5.26678117,3033.1,3033.0,0.001]
[1764543784450,5.47578117,3033.1,3033.0,0.001]
[1764543784628,6.87694043,3033.1,3033.0,0.001]
[1764543784840,6.87694043,3033.1,3032.7,0.001]
[1764543784841,5.17798476,3032.8,3032.7,0.001]
[1764543785041,5.40678476,3032.8,3032.7,0.001]
[1764543785263,5.86318476,3032.8,3032.7,0.001]
[1764543785858,9.31096779,3032.8,3032.7,0.001]
[1764543786068,10.63198012,3032.8,3032.7,0.001]
[1764543786379,6.05191963,3032.8,3032.7,0.001]
[1764543786575,6.50831963,3032.8,3032.7,0.001]
[1764543786775,6.05191963,3032.8,3032.7,0.001]
[1764543786943,6.26091963,3032.8,3032.7,0.001]
[1764543787372,6.71731963,3032.8,3032.7,0.001]
[1764543787751,0.72559411,3032.7,3031.4,0.1505]
[1764543787956,4.8090335,3032.5,3031.4,0.1505]
[1764543788496,5.2654335,3032.5,3031.4,0.1505]
[1764543789057,5.2654335,3032.5,3031.4,0.6157]
[1764543789578,4.8110335,3032.5,3032.1,0.1527]
[1764543789788,5.4764335,3032.5,3031.6,0.4652]
[1764543789964,6.42299311,3032.5,3031.6,0.4652]
[1764543792168,5.29849311,3032.5,3032.2,0.1527]
[1764543792404,5.50749311,3032.5,3032.2,0.1527]
[1764543793008,6.42299311,3032.5,3031.6,0.4652]
[1764543795501,6.42299311,3032.5,3032.0,0.001]
[1764543796235,6.88819311,3032.5,3032.0,0.001]
[1764543797033,3.471,3032.3,3032.0,0.001]
[1764543797242,0.72559411,3032.4,3032.0,0.001]
[1764543797243,8.87798476,3032.1,3032.0,0.001]
[1764543797433,0.32873016,3031.8,3031.7,0.001]
[1764543797633,5.18152427,3031.8,3031.7,0.001]
[1764543797935,5.87298654,3031.8,3030.8,0.001]
[1764543798137,0.32873016,3030.9,3030.8,0.001]
[1764543798344,0.32873016,3030.9,3030.4,0.001]
[1764543798345,14.73434417,3030.9,3030.4,0.001]
[1764543798513,4.98442427,3030.5,3030.4,0.001]
[1764543798723,6.10423275,3030.5,3030.4,0.001]
[1764543799036,0.91080848,3030.5,3030.4,0.001]
[1764543799240,2.17882427,3030.5,3030.4,0.001]
[1764543799457,1.05432427,3030.5,3030.4,0.001]
[1764543799631,10.56265006,3030.9,3030.4,0.001]
[1764543799632,0.72559411,3030.8,3030.4,0.9371]
[1764543799940,0.32873016,3030.5,3030.4,0.4662]
[1764543800336,3.62851567,3030.5,3030.4,0.9371]
[1764543800540,3.62851567,3030.5,3030.4,0.4719]
[1764543800750,3.29978551,3030.5,3030.4,0.9371]
[1764543800932,3.62851567,3030.5,3030.4,0.9371]
[1764543801109,0.4652,3030.9,3030.4,0.9371]
[1764543801310,3.83717297,3030.9,3030.8,0.4709]
[1764543801511,0.32873016,3030.6,3030.5,0.4652]
[1764543801751,0.32873016,3030.6,3030.4,0.001]
[1764543802044,7.52153002,3030.9,3030.5,0.4709]
[1764543802206,7.52153002,3030.9,3030.4,0.4662]
[1764543802207,0.32873016,3030.5,3030.4,0.001]
[1764543802541,0.32873016,3030.5,3030.4,0.4662]
[1764543802708,1.02153772,3030.5,3030.4,0.9191]
[1764543803430,0.69280756,3030.5,3030.4,0.9191]
[1764543803741,4.02505299,3030.8,3030.4,0.9191]
[1764543804038,7.32451187,3030.8,3030.5,0.4968]
[1764543804244,0.7136444,3030.9,3030.7,0.4529]
[1764543804444,3.29908299,3031.2,3030.8,0.4529]
[1764543804445,3.29910007,3031.2,3030.8,0.4529]
[1764543804609,0.32873016,3030.9,3030.8,0.4529]
[1764543805011,0.32873016,3030.9,3030.8,0.9497]
[1764543806647,3.29935002,3030.9,3030.8,0.9497]
[1764543807346,3.29935002,3030.9,3030.8,0.4529]
[1764543807642,4.61786257,3030.9,3030.8,0.4529]
[1764543808021,3.29935002,3030.9,3030.8,0.4529]
[1764543808225,3.29935002,3030.9,3030.8,0.9497]
[1764543808625,3.62808018,3030.9,3030.8,0.9497]
[1764543808933,0.1812,3031.9,3030.8,0.9497]
[1764543809133,0.1812,3031.9,3030.4,0.001]
[1764543809134,0.32873016,3031.3,3031.0,0.4529]
[1764543809446,0.209,3031.2,3031.0,0.4529]
[1764543809966,0.209,3031.2,3031.1,0.6024]
[1764543810511,3.83675364,3031.2,3031.1,0.6024]
[1764543810757,5.27591439,3031.2,3031.1,0.6024]
[1764543811031,0.32873016,3031.1,3030.8,0.6211]
[1764543811436,0.93459411,3031.5,3030.4,0.4726]
[1764543811437,0.4995,3031.3,3030.4,0.4726]
[1764543811638,0.99413016,3030.5,3030.4,0.001]
[1764543811875,1.01503016,3030.5,3030.4,0.001]
[1764543812935,5.04040978,3030.5,3030.4,0.001]
[1764543813557,4.6903339,3030.5,3030.4,0.001]
[1764543813765,4.6903339,3030.5,3030.4,0.4855]
[1764543815329,4.36160374,3030.5,3030.4,0.9571]
[1764543815831,4.6903339,3030.5,3030.4,0.9571]
[1764543816760,4.6903339,3030.5,3030.4,0.4855]
[1764543817762,4.6903339,3030.5,3030.4,0.001]
[1764543818259,4.6903339,3030.5,3030.4,0.4855]
[1764543818762,0.53773016,3030.5,3030.4,0.9571]
[1764543818962,0.32873016,3030.8,3030.5,0.405504]
[1764543819165,0.32873016,3030.8,3030.7,0.4845]
[1764543819864,3.62818904,3030.8,3030.7,0.4845]
[1764543820062,3.50830243,3031.0,3030.7,0.9561]
[1764543820358,3.50830243,3031.0,3030.4,0.001]
[1764543820359,3.29930243,3031.0,3030.9,0.4845]
[1764543820559,3.62803259,3031.0,3030.9,0.4845]
[1764543820765,3.62803259,3031.0,3030.9,0.9561]
[1764543821633,3.62803259,3031.0,3030.9,0.4845]
[1764543822836,0.32873016,3030.6,3030.4,0.406504]
[1764543823245,0.32873016,3030.6,3030.5,0.9561]
[1764543823830,3.62840679,3030.6,3030.5,0.9561]
[1764543824057,0.32873016,3030.6,3030.5,0.9561]
[1764543824261,3.62840679,3030.6,3030.5,0.9561]
[1764543825075,0.32873016,3030.7,3030.5,0.9561]
[1764543825240,0.32873016,3030.7,3030.6,0.4716]
[1764543825574,0.209,3031.1,3030.6,0.9561]
[1764543825779,3.50814081,3031.1,3031.0,0.4845]
[1764543825942,3.89182791,3031.1,3031.0,0.4845]
[1764543826577,0.72559411,3031.4,3031.0,0.9561]
[1764543826779,6.92655946,3031.3,3031.1,0.1495]
[1764543826966,6.92655946,3031.3,3031.1,0.6211]
[1764543827166,4.35323892,3031.3,3031.2,0.4845]
[1764543827477,0.4773,3031.2,3030.7,0.1495]
[1764543827660,1.620126,3031.2,3030.7,0.1495]
[1764543827976,0.32873016,3031.0,3030.7,0.1495]
[1764543828272,3.29935002,3030.9,3030.7,0.1495]
[1764543828478,3.29935002,3030.9,3030.7,0.6211]
[1764543828641,3.29935002,3030.9,3030.8,0.4845]
[1764543828841,0.9768,3030.8,3030.4,0.001]
[1764543829070,0.32873016,3030.6,3030.4,0.001]
[1764543829264,0.32873016,3030.6,3030.4,0.4726]
[1764543829571,0.32873016,3030.6,3030.5,0.4845]
[1764543830388,3.62840679,3030.6,3030.5,0.4845]
[1764543830789,0.69273513,3030.9,3030.5,0.9561]
[1764543831090,0.69273513,3030.9,3030.8,0.4845]
[1764543831091,3.62808356,3030.9,3030.8,0.4845]
[1764543831896,3.2993534,3030.9,3030.8,0.4845]
[1764543832060,3.62808356,3030.9,3030.8,0.4845]
[1764543833087,6.5987068,3030.9,3030.4,0.406504]
[1764543833274,0.32873016,3030.5,3030.4,0.406504]
[1764543833603,0.32873016,3030.5,3030.4,0.865904]
[1764543833784,0.32873016,3030.8,3030.4,1.364004]
[1764543833985,0.32873016,3030.8,3030.5,0.4594]
[1764543834188,0.32873016,3030.8,3030.7,0.4981]
[1764543834393,4.01318595,3030.9,3030.7,0.4981]
[1764543834576,4.01318595,3030.9,3030.8,0.4981]
[1764543835472,3.2993534,3030.9,3030.8,0.4981]
[1764543835683,3.2993534,3030.9,3030.4,0.406504]
[1764543835883,6.5987068,3030.9,3030.5,0.4594]
[1764543836109,3.2993534,3030.9,3030.8,0.4981]
[1764543836308,3.62808356,3030.9,3030.8,0.4981]
[1764543839621,4.34191619,3030.9,3030.8,0.4981]
[1764543840220,12.09902299,3030.9,3030.4,0.001]
[1764543840397,0.32873016,3030.5,3030.4,0.001]
[1764543840602,8.32826959,3030.9,3030.4,0.001]
[1764543840802,8.32826959,3030.9,3030.4,0.9585]
[1764543840803,0.32873016,3030.6,3030.4,0.9585]
[1764543841323,0.32873016,3030.6,3030.5,0.4981]
[1764543841493,3.62840679,3030.6,3030.5,0.4981]
[1764543843219,3.62840679,3030.6,3030.4,0.001]
[1764543843220,1.05432427,3030.5,3030.4,0.001]
[1764543843427,1.05432427,3030.5,3030.3,0.001]
[1764543843428,6.08791202,3030.5,3030.3,0.001]
[1764543843591,12.14658313,3030.2,3030.1,0.001]
[1764543843798,12.56688313,3030.2,3030.1,0.001]
[1764543844014,11.53111123,3030.2,3030.1,0.001]
[1764543845423,15.00211123,3030.2,3030.1,0.001]
[1764543845726,15.00211123,3030.2,3028.3,0.1505]
[1764543845727,0.32873016,3028.6,3028.3,0.1505]
[1764543845928,0.32873016,3028.6,3028.5,0.4981]
[1764543846131,0.32873016,3028.6,3028.3,0.1505]
[1764543846728,0.32873016,3028.6,3028.5,0.4981]
[1764543847091,0.32873016,3028.9,3028.5,0.4981]
[1764543847636,0.32873016,3028.9,3027.9,3.45530337]
[1764543847637,0.4928,3028.6,3027.9,0.1527]
[1764543847800,0.2056,3028.4,3027.7,0.1527]
[1764543848131,0.53433016,3028.4,3027.7,0.1527]
[1764543848294,0.53433016,3028.4,3027.7,0.6121]
[1764543848738,0.72559411,3028.7,3028.3,0.4981]
[1764543848899,0.32873016,3028.5,3028.4,0.4981]
[1764543849299,0.32873016,3028.5,3028.3,0.1505]
[1764543849726,3.3020737,3028.4,3028.3,0.1505]
[1764543849938,11.0794211,3028.4,3027.4,0.4594]
[1764543850111,11.0794211,3028.4,3027.0,0.1495]
[1764543850112,0.32873016,3027.7,3027.0,0.1495]
[1764543850316,0.32873016,3027.8,3027.3,0.4594]
[1764543850510,0.32873016,3027.8,3027.6,0.4981]
[1764543851039,0.32873016,3027.7,3027.6,0.4981]
[1764543851736,3.30294622,3027.6,3027.1,0.405504]
[1764543851905,0.32873016,3027.5,3027.1,0.43853891]
[1764543852105,0.32873016,3027.5,3027.4,0.4981]
[1764543853059,0.32873016,3027.5,3027.4,0.9575]
[1764543853445,0.32873016,3027.5,3027.4,0.4981]
[1764543853831,0.32873016,3027.5,3027.4,0.9575]
[1764543854037,0.32873016,3027.6,3027.4,0.9575]
[1764543854231,3.30261897,3027.9,3027.0,3.89163827]
[1764543854232,3.30261897,3027.9,3027.5,0.4594]
[1764543854433,7.28665095,3027.9,3027.1,0.405504]
[1764543854654,0.32873016,3027.3,3027.1,0.864904]
[1764543855032,0.32873016,3027.4,3027.3,0.405504]
[1764543855426,0.32873016,3027.4,3027.3,0.903604]
[1764543855660,0.32873016,3027.4,3027.3,1.363004]
[1764543856248,0.68141301,3027.9,3027.3,1.363004]
[1764543856450,0.32873016,3027.5,3027.3,0.405504]
[1764543856655,3.72209107,3027.8,3027.3,0.405504]
[1764543856839,0.72559411,3028.3,3027.7,0.4743]
[1764543857158,0.32873016,3028.2,3027.8,0.4743]
[1764543857342,0.32873016,3028.1,3027.3,0.482]
[1764543857539,0.93459411,3028.3,3027.3,0.482]
[1764543857731,1.74162427,3028.3,3027.3,0.482]
[1764543857930,0.32873016,3028.0,3027.3,0.482]
[1764543858440,3.30261897,3027.9,3027.3,0.482]
[1764543858661,6.60523794,3027.9,3027.3,0.482]
[1764543858848,3.30249462,3028.1,3027.8,0.4743]
[1764543859052,0.32873016,3028.0,3027.8,0.4743]
[1764543859559,0.32873016,3028.0,3027.4,0.405504]
[1764543859759,0.32873016,3027.7,3027.4,0.405504]
[1764543860180,0.32873016,3027.7,3027.6,0.879804]
[1764543861469,3.30249462,3028.1,3027.6,1.361804]
[1764543861470,0.32873016,3028.1,3027.6,1.361804]
[1764543861667,0.32873016,3028.1,3027.7,0.482]
[1764543862777,6.6050198,3028.0,3027.6,0.405504]
[1764543862978,0.32873016,3027.9,3027.6,0.405504]
[1764543863883,0.32873016,3027.9,3027.8,0.4954]
[1764543864380,0.32873016,3027.9,3027.6,0.405504]
[1764543864782,0.32873016,3027.9,3027.8,0.4954]
[1764543864991,3.30256949,3028.0,3027.8,0.4954]
[1764543865283,3.30256949,3028.0,3027.7,0.4608]
[1764543865284,0.209,3028.4,3028.0,0.4954]
[1764543865483,3.30174662,3028.7,3028.3,0.4954]
[1764543865780,1.05548399,3028.6,3028.3,0.4954]